[Event "Titled Tuesday Blitz August 15 Early 2023"]
[White "Putnam, Liam"]
[Black "RrainlessBobot"]
[WhiteFideId "30938279"]
[WhiteElo "2807"]
[BlackElo "2501"]
[Result "1/2-1/2"]
[Round "9"]
[TimeControl "180+1"]
[Date "2023.08.15"]
[WhiteClock "0:00:05"]
[BlackClock "0:00:11"]
[Board "39"]

1. e4 {[%clk 0:00:46]}  Nf6 {[%clk 0:02:59]} 2. e5 {[%clk 0:00:45]}  Nd5 {[%clk 0:03:00]} 3. d4 {[%clk 0:00:45]}  d6 {[%clk 0:03:00]} 4. Nf3 {[%clk 0:00:46]}  dxe5 {[%clk 0:03:00]} 5. Nxe5 {[%clk 0:00:47]}  c6 {[%clk 0:03:01]} 6. Bc4 {[%clk 0:00:47]}  g6 {[%clk 0:03:01]} 7. O-O {[%clk 0:00:48]}  Bg7 {[%clk 0:03:01]} 8. Qe2 {[%clk 0:00:48]}  O-O {[%clk 0:03:01]} 9. Rd1 {[%clk 0:00:47]}  Nd7 {[%clk 0:02:56]} 10. Bb3 {[%clk 0:00:47]}  Nxe5 {[%clk 0:02:50]} 11. dxe5 {[%clk 0:00:47]}  Qc7 {[%clk 0:02:51]} 12. c4 {[%clk 0:00:44]}  Nb6 {[%clk 0:02:34]} 13. Bf4 {[%clk 0:00:44]}  Be6 {[%clk 0:02:34]} 14. Nc3 {[%clk 0:00:44]}  Rfd8 {[%clk 0:02:30]} 15. h3 {[%clk 0:00:39]}  Rxd1+ {[%clk 0:02:30]} 16. Rxd1 {[%clk 0:00:38]}  Rd8 {[%clk 0:02:31]} 17. Rxd8+ {[%clk 0:00:35]}  Qxd8 {[%clk 0:02:31]} 18. Ne4 {[%clk 0:00:36]}  Qd4 {[%clk 0:02:23]} 19. c5 {[%clk 0:00:31]}  Nd5 {[%clk 0:02:20]} 20. Bg3 {[%clk 0:00:26]}  Nc7 {[%clk 0:02:06]} 21. Ng5 {[%clk 0:00:20]}  Bxb3 {[%clk 0:01:50]} 22. axb3 {[%clk 0:00:21]}  e6 {[%clk 0:01:40]} 23. b4 {[%clk 0:00:15]}  Qxb4 {[%clk 0:01:36]} 24. Qf3 {[%clk 0:00:14]}  h6 {[%clk 0:00:42]} 25. Qxf7+ {[%clk 0:00:11]}  Kh8 {[%clk 0:00:43]} 26. Nxe6 {[%clk 0:00:11]}  Nxe6 {[%clk 0:00:41]} 27. Qxe6 {[%clk 0:00:12]}  Qxc5 {[%clk 0:00:42]} 28. Qxg6 {[%clk 0:00:11]}  Qc1+ {[%clk 0:00:30]} 29. Kh2 {[%clk 0:00:11]}  Qxb2 {[%clk 0:00:31]} 30. e6 {[%clk 0:00:10]}  Qf6 {[%clk 0:00:31]} 31. Qe8+ {[%clk 0:00:09]}  Qf8 {[%clk 0:00:26]} 32. Qd7 {[%clk 0:00:08]}  Bf6 {[%clk 0:00:27]} 33. Qxb7 {[%clk 0:00:08]}  c5 {[%clk 0:00:25]} 34. Qxa7 {[%clk 0:00:08]}  c4 {[%clk 0:00:26]} 35. Qc7 {[%clk 0:00:08]}  c3 {[%clk 0:00:25]} 36. Be5 {[%clk 0:00:06]}  c2 {[%clk 0:00:16]} 37. Bxf6+ {[%clk 0:00:05]}  Qxf6 {[%clk 0:00:17]} 38. Qxc2 {[%clk 0:00:05]}  Qxe6 {[%clk 0:00:16]} 39. Qc3+ {[%clk 0:00:05]}  Kh7 {[%clk 0:00:16]} 40. Qg3 {[%clk 0:00:06]}  Qe2 {[%clk 0:00:14]} 41. h4 {[%clk 0:00:07]}  Qd1 {[%clk 0:00:14]} 42. Qf4 {[%clk 0:00:07]}  Qf1 {[%clk 0:00:14]} 43. g3 {[%clk 0:00:08]}  Kg6 {[%clk 0:00:14]} 44. h5+ {[%clk 0:00:08]}  Kh7 {[%clk 0:00:13]} 45. Qf5+ {[%clk 0:00:08]}  Kh8 {[%clk 0:00:13]} 46. Qf8+ {[%clk 0:00:08]}  Kh7 {[%clk 0:00:13]} 47. Qf7+ {[%clk 0:00:09]}  Kh8 {[%clk 0:00:14]} 48. Qf6+ {[%clk 0:00:10]}  Kh7 {[%clk 0:00:14]} 49. Qg6+ {[%clk 0:00:11]}  Kh8 {[%clk 0:00:14]} 50. Qxh6+ {[%clk 0:00:12]}  Kg8 {[%clk 0:00:15]} 51. Qg6+ {[%clk 0:00:12]}  Kh8 {[%clk 0:00:16]} 52. Qf6+ {[%clk 0:00:13]}  Kh7 {[%clk 0:00:16]} 53. Qf5+ {[%clk 0:00:13]}  Kh8 {[%clk 0:00:16]} 54. Qf3 {[%clk 0:00:14]}  Qc4 {[%clk 0:00:14]} 55. g4 {[%clk 0:00:12]}  Qc7+ {[%clk 0:00:13]} 56. Kg2 {[%clk 0:00:12]}  Qc4 {[%clk 0:00:13]} 57. Qf6+ {[%clk 0:00:11]}  Kg8 {[%clk 0:00:12]} 58. Qg6+ {[%clk 0:00:11]}  Kh8 {[%clk 0:00:13]} 59. h6 {[%clk 0:00:12]}  Qf1+ {[%clk 0:00:13]} 60. Kg3 {[%clk 0:00:06]}  Qxf2+ {[%clk 0:00:11]} 61. Kxf2 {[%clk 0:00:05]} 1/2-1/2


[Site "https://www.chess.com"]

[Event "Titled Tuesday Blitz August 15 Early 2023"]
[White "Hambleton, Aman"]
[Black "Papayan, Oleg"]
[WhiteFideId "2606577"]
[BlackFideId "4193911"]
[WhiteElo "2751"]
[BlackElo "2613"]
[Result "1-0"]
[Round "9"]
[TimeControl "180+1"]
[Date "2023.08.15"]
[WhiteClock "0:00:04"]
[BlackClock "0:00:04"]
[Board "41"]

1. d4 {[%clk 0:03:00]}  Nf6 {[%clk 0:02:59]} 2. c4 {[%clk 0:02:54]}  e6 {[%clk 0:02:59]} 3. Nc3 {[%clk 0:02:54]}  Bb4 {[%clk 0:02:58]} 4. Qc2 {[%clk 0:02:46]}  O-O {[%clk 0:02:54]} 5. Nf3 {[%clk 0:02:42]}  d5 {[%clk 0:02:52]} 6. cxd5 {[%clk 0:02:42]}  exd5 {[%clk 0:02:51]} 7. Bg5 {[%clk 0:02:42]}  h6 {[%clk 0:02:43]} 8. Bh4 {[%clk 0:02:32]}  c5 {[%clk 0:02:42]} 9. e3 {[%clk 0:02:13]}  Nc6 {[%clk 0:02:35]} 10. Rd1 {[%clk 0:02:05]}  g5 {[%clk 0:02:22]} 11. Bg3 {[%clk 0:02:04]}  Ne4 {[%clk 0:02:22]} 12. Bd3 {[%clk 0:01:45]}  cxd4 {[%clk 0:01:58]} 13. Bxe4 {[%clk 0:01:08]}  dxc3 {[%clk 0:01:26]} 14. bxc3 {[%clk 0:01:07]}  Ba5 {[%clk 0:00:38]} 15. Bxd5 {[%clk 0:00:22]}  Qf6 {[%clk 0:00:37]} 16. O-O {[%clk 0:00:22]}  Bf5 {[%clk 0:00:23]} 17. Qb3 {[%clk 0:00:15]}  Bb6 {[%clk 0:00:12]} 18. Nd4 {[%clk 0:00:11]}  Bg4 {[%clk 0:00:09]} 19. f3 {[%clk 0:00:03]}  Bh5 {[%clk 0:00:10]} 20. Bf2 {[%clk 0:00:03]}  Rfd8 {[%clk 0:00:09]} 21. e4 {[%clk 0:00:03]}  g4 {[%clk 0:00:07]} 22. fxg4 {[%clk 0:00:03]}  Bxg4 {[%clk 0:00:08]} 23. Rde1 {[%clk 0:00:03]}  Qg7 {[%clk 0:00:07]} 24. Qb2 {[%clk 0:00:02]}  Ne5 {[%clk 0:00:06]} 25. Bh4 {[%clk 0:00:01]}  Nd3 {[%clk 0:00:06]} 26. Qb3 {[%clk 0:00:01]}  Nxe1 {[%clk 0:00:06]} 27. Rxf7 {[%clk 0:00:01]}  Bxd4+ {[%clk 0:00:05]} 28. Kh1 {[%clk 0:00:01]}  Qe5 {[%clk 0:00:03]} 29. Rf5+ {[%clk 0:00:02]}  Rxd5 {[%clk 0:00:03]} 30. Rxe5 {[%clk 0:00:02]}  Bxe5 {[%clk 0:00:03]} 31. Qxd5+ {[%clk 0:00:02]}  Kf8 {[%clk 0:00:02]} 32. Qxe5 {[%clk 0:00:02]}  Bd7 {[%clk 0:00:03]} 33. Qe7+ {[%clk 0:00:02]}  Kg8 {[%clk 0:00:03]} 34. Bf6 {[%clk 0:00:03]}  Rf8 {[%clk 0:00:04]} 35. Qg7# {[%clk 0:00:04]} 1-0


[Site "https://www.chess.com"]

[Event "Titled Tuesday Blitz August 15 Early 2023"]
[White "Shcherbin, Matvei"]
[Black "Golubev, Mikhail"]
[WhiteFideId "24125164"]
[BlackFideId "14100983"]
[WhiteElo "2742"]
[BlackElo "2609"]
[Result "1-0"]
[Round "9"]
[TimeControl "180+1"]
[Date "2023.08.15"]
[WhiteClock "0:01:51"]
[BlackClock "0:00:00"]
[Board "42"]

1. e4 {[%clk 0:03:00]}  c5 {[%clk 0:02:59]} 2. c3 {[%clk 0:03:01]}  Nf6 {[%clk 0:02:57]} 3. e5 {[%clk 0:03:01]}  Nd5 {[%clk 0:02:57]} 4. d4 {[%clk 0:03:02]}  cxd4 {[%clk 0:02:57]} 5. Nf3 {[%clk 0:03:03]}  Nc6 {[%clk 0:02:56]} 6. cxd4 {[%clk 0:03:03]}  d6 {[%clk 0:02:53]} 7. Bc4 {[%clk 0:03:03]}  Nb6 {[%clk 0:02:50]} 8. Bb5 {[%clk 0:03:03]}  dxe5 {[%clk 0:02:51]} 9. Nxe5 {[%clk 0:03:03]}  Bd7 {[%clk 0:02:51]} 10. Nc3 {[%clk 0:03:03]}  Nxe5 {[%clk 0:02:47]} 11. dxe5 {[%clk 0:03:04]}  Bxb5 {[%clk 0:02:46]} 12. Nxb5 {[%clk 0:03:05]}  Qxd1+ {[%clk 0:02:44]} 13. Kxd1 {[%clk 0:03:06]}  Nd5 {[%clk 0:02:41]} 14. Ke2 {[%clk 0:03:06]}  a6 {[%clk 0:02:18]} 15. Rd1 {[%clk 0:03:05]}  O-O-O {[%clk 0:02:12]} 16. Na3 {[%clk 0:03:04]}  e6 {[%clk 0:02:06]} 17. Nc4 {[%clk 0:03:04]}  Be7 {[%clk 0:02:00]} 18. Be3 {[%clk 0:03:01]}  Kb8 {[%clk 0:01:47]} 19. Nb6 {[%clk 0:02:58]}  Nxe3 {[%clk 0:01:26]} 20. fxe3 {[%clk 0:02:48]}  Kc7 {[%clk 0:01:06]} 21. Na4 {[%clk 0:02:39]}  Rxd1 {[%clk 0:00:40]} 22. Rxd1 {[%clk 0:02:39]}  b5 {[%clk 0:00:28]} 23. Rc1+ {[%clk 0:02:31]}  Kb7 {[%clk 0:00:27]} 24. Nc3 {[%clk 0:02:31]}  f5 {[%clk 0:00:18]} 25. exf6 {[%clk 0:02:31]}  Bxf6 {[%clk 0:00:17]} 26. Ne4 {[%clk 0:02:31]}  Bxb2 {[%clk 0:00:13]} 27. Rf1 {[%clk 0:02:31]}  Rd8 {[%clk 0:00:09]} 28. Nc5+ {[%clk 0:02:30]}  Kb6 {[%clk 0:00:07]} 29. Nxe6 {[%clk 0:02:29]}  Rd6 {[%clk 0:00:07]} 30. Ng5 {[%clk 0:02:21]}  Rg6 {[%clk 0:00:03]} 31. h4 {[%clk 0:01:55]}  h6 {[%clk 0:00:02]} 32. Ne4 {[%clk 0:01:56]}  Rxg2+ {[%clk 0:00:02]} 33. Kd3 {[%clk 0:01:56]}  Rh2 {[%clk 0:00:02]} 34. Rf4 {[%clk 0:01:53]}  Ka5 {[%clk 0:00:00]} 35. Nc5 {[%clk 0:01:51]} 1-0


[Site "https://www.chess.com"]

[Event "Titled Tuesday Blitz August 15 Early 2023"]
[White "Sadykov, Ramil"]
[Black "Stribuk, Artiom"]
[WhiteFideId "24113590"]
[BlackFideId "13515659"]
[WhiteElo "2598"]
[BlackElo "2740"]
[Result "0-1"]
[Round "9"]
[TimeControl "180+1"]
[Date "2023.08.15"]
[WhiteClock "0:00:00"]
[BlackClock "0:00:15"]
[Board "43"]

1. d4 {[%clk 0:03:00]}  Nf6 {[%clk 0:02:56]} 2. Nc3 {[%clk 0:03:00]}  d5 {[%clk 0:02:52]} 3. Bf4 {[%clk 0:03:00]}  Bf5 {[%clk 0:02:52]} 4. e3 {[%clk 0:03:00]}  e6 {[%clk 0:02:52]} 5. Nf3 {[%clk 0:03:01]}  Bb4 {[%clk 0:02:50]} 6. Bd3 {[%clk 0:02:59]}  Bxc3+ {[%clk 0:02:47]} 7. bxc3 {[%clk 0:02:59]}  Nbd7 {[%clk 0:02:47]} 8. c4 {[%clk 0:02:56]}  c6 {[%clk 0:02:30]} 9. O-O {[%clk 0:02:46]}  O-O {[%clk 0:02:25]} 10. Rb1 {[%clk 0:02:37]}  b6 {[%clk 0:02:23]} 11. cxd5 {[%clk 0:02:35]}  Nxd5 {[%clk 0:02:16]} 12. Bg3 {[%clk 0:02:33]}  Nc3 {[%clk 0:02:16]} 13. Qe1 {[%clk 0:02:14]}  Nxb1 {[%clk 0:02:13]} 14. e4 {[%clk 0:02:00]}  Bg4 {[%clk 0:02:09]} 15. Qxb1 {[%clk 0:01:47]}  Bxf3 {[%clk 0:02:09]} 16. gxf3 {[%clk 0:01:47]}  c5 {[%clk 0:02:10]} 17. c3 {[%clk 0:01:40]}  cxd4 {[%clk 0:02:08]} 18. cxd4 {[%clk 0:01:40]}  Rc8 {[%clk 0:02:09]} 19. Qb3 {[%clk 0:01:28]}  Qg5 {[%clk 0:01:59]} 20. Qa4 {[%clk 0:01:08]}  Rc3 {[%clk 0:01:53]} 21. Rd1 {[%clk 0:01:01]}  Rc1 {[%clk 0:01:42]} 22. Rxc1 {[%clk 0:00:58]}  Qxc1+ {[%clk 0:01:43]} 23. Kg2 {[%clk 0:00:59]}  Qc3 {[%clk 0:01:39]} 24. Bb5 {[%clk 0:00:53]}  Nf6 {[%clk 0:01:38]} 25. Be5 {[%clk 0:00:45]}  a5 {[%clk 0:01:32]} 26. Bf1 {[%clk 0:00:35]}  h6 {[%clk 0:01:23]} 27. Qb5 {[%clk 0:00:30]}  Qb4 {[%clk 0:01:07]} 28. a4 {[%clk 0:00:14]}  Qxb5 {[%clk 0:00:52]} 29. Bxb5 {[%clk 0:00:14]}  Rc8 {[%clk 0:00:52]} 30. Kf1 {[%clk 0:00:10]}  Ne8 {[%clk 0:00:50]} 31. d5 {[%clk 0:00:07]}  exd5 {[%clk 0:00:38]} 32. exd5 {[%clk 0:00:08]}  Nc7 {[%clk 0:00:25]} 33. Bd7 {[%clk 0:00:04]}  Rd8 {[%clk 0:00:25]} 34. Bxc7 {[%clk 0:00:03]}  Rxd7 {[%clk 0:00:25]} 35. d6 {[%clk 0:00:03]}  f5 {[%clk 0:00:18]} 36. Bxb6 {[%clk 0:00:01]}  Rxd6 {[%clk 0:00:18]} 37. Bxa5 {[%clk 0:00:02]}  Ra6 {[%clk 0:00:18]} 38. Bc3 {[%clk 0:00:02]}  Rxa4 {[%clk 0:00:19]} 39. Kg2 {[%clk 0:00:02]}  Kf7 {[%clk 0:00:19]} 40. Be5 {[%clk 0:00:02]}  Rc4 {[%clk 0:00:19]} 41. Bb2 {[%clk 0:00:02]}  g6 {[%clk 0:00:20]} 42. Be5 {[%clk 0:00:02]}  Rc5 {[%clk 0:00:20]} 43. Bd4 {[%clk 0:00:02]}  Rd5 {[%clk 0:00:19]} 44. Be3 {[%clk 0:00:02]}  Rd3 {[%clk 0:00:20]} 45. Bxh6 {[%clk 0:00:02]}  Kf6 {[%clk 0:00:19]} 46. h4 {[%clk 0:00:01]}  Ke5 {[%clk 0:00:17]} 47. Bg5 {[%clk 0:00:02]}  Rb3 {[%clk 0:00:17]} 48. Kg3 {[%clk 0:00:02]}  Ra3 {[%clk 0:00:16]} 49. Bf4+ {[%clk 0:00:02]}  Kd5 {[%clk 0:00:17]} 50. Bg5 {[%clk 0:00:03]}  Ra4 {[%clk 0:00:17]} 51. Kg2 {[%clk 0:00:04]}  Kd4 {[%clk 0:00:17]} 52. Kg3 {[%clk 0:00:04]}  Kd3 {[%clk 0:00:18]} 53. Be3 {[%clk 0:00:04]}  Ke2 {[%clk 0:00:18]} 54. Kg2 {[%clk 0:00:04]}  Rxh4 {[%clk 0:00:18]} 55. Kg3 {[%clk 0:00:04]}  Ra4 {[%clk 0:00:16]} 56. Kg2 {[%clk 0:00:05]}  Ra3 {[%clk 0:00:17]} 57. Bc5 {[%clk 0:00:05]}  Rxf3 {[%clk 0:00:16]} 58. Bd4 {[%clk 0:00:04]}  g5 {[%clk 0:00:17]} 59. Bc5 {[%clk 0:00:04]}  g4 {[%clk 0:00:17]} 60. Bd4 {[%clk 0:00:04]}  Rh3 {[%clk 0:00:16]} 61. Bc5 {[%clk 0:00:04]}  f4 {[%clk 0:00:17]} 62. Bd6 {[%clk 0:00:04]}  f3+ {[%clk 0:00:17]} 63. Kg1 {[%clk 0:00:04]}  g3 {[%clk 0:00:15]} 64. Bc5 {[%clk 0:00:00]}  g2 {[%clk 0:00:15]} 0-1


[Site "https://www.chess.com"]

[Event "Titled Tuesday Blitz August 15 Early 2023"]
[White "Wong, Yinn Long"]
[Black "Przybylski, Wojciech"]
[WhiteFideId "5707684"]
[BlackFideId "1117599"]
[WhiteElo "2728"]
[BlackElo "2579"]
[Result "1-0"]
[Round "9"]
[TimeControl "180+1"]
[Date "2023.08.15"]
[WhiteClock "0:00:19"]
[BlackClock "0:00:02"]
[Board "44"]

1. Nf3 {[%clk 0:03:00]}  Nf6 {[%clk 0:02:11]} 2. g3 {[%clk 0:03:00]}  d5 {[%clk 0:02:10]} 3. Bg2 {[%clk 0:03:00]}  c6 {[%clk 0:02:10]} 4. O-O {[%clk 0:03:00]}  Bg4 {[%clk 0:02:10]} 5. d3 {[%clk 0:03:00]}  e6 {[%clk 0:02:10]} 6. Qe1 {[%clk 0:03:00]}  Nbd7 {[%clk 0:02:10]} 7. b3 {[%clk 0:02:59]}  Bc5 {[%clk 0:02:08]} 8. Bb2 {[%clk 0:02:59]}  O-O {[%clk 0:02:07]} 9. Nbd2 {[%clk 0:02:59]}  a5 {[%clk 0:02:06]} 10. a3 {[%clk 0:02:58]}  b5 {[%clk 0:02:06]} 11. h3 {[%clk 0:02:55]}  Bxf3 {[%clk 0:02:05]} 12. exf3 {[%clk 0:02:50]}  Re8 {[%clk 0:02:02]} 13. f4 {[%clk 0:02:50]}  Qb6 {[%clk 0:02:01]} 14. Nf3 {[%clk 0:02:41]}  Qa7 {[%clk 0:01:59]} 15. Kh2 {[%clk 0:02:35]}  Bd6 {[%clk 0:01:55]} 16. Ne5 {[%clk 0:02:29]}  Qc7 {[%clk 0:01:53]} 17. Qe2 {[%clk 0:02:26]}  a4 {[%clk 0:01:49]} 18. d4 {[%clk 0:01:53]}  c5 {[%clk 0:01:34]} 19. dxc5 {[%clk 0:01:51]}  Nxc5 {[%clk 0:01:30]} 20. Qe3 {[%clk 0:01:38]}  Ncd7 {[%clk 0:01:04]} 21. Qe2 {[%clk 0:01:20]}  Rab8 {[%clk 0:00:45]} 22. Rad1 {[%clk 0:01:12]}  Rec8 {[%clk 0:00:44]} 23. Rd2 {[%clk 0:01:09]}  b4 {[%clk 0:00:43]} 24. Nxd7 {[%clk 0:00:44]}  Nxd7 {[%clk 0:00:38]} 25. Qg4 {[%clk 0:00:45]}  Bf8 {[%clk 0:00:31]} 26. axb4 {[%clk 0:00:45]}  Rxb4 {[%clk 0:00:29]} 27. Ba3 {[%clk 0:00:26]}  Nf6 {[%clk 0:00:28]} 28. Qd1 {[%clk 0:00:25]}  Rbb8 {[%clk 0:00:25]} 29. Bxf8 {[%clk 0:00:24]}  Rxf8 {[%clk 0:00:25]} 30. bxa4 {[%clk 0:00:25]}  Rb4 {[%clk 0:00:23]} 31. Rd4 {[%clk 0:00:24]}  Qa5 {[%clk 0:00:23]} 32. Qd2 {[%clk 0:00:23]}  Rfb8 {[%clk 0:00:22]} 33. Rb1 {[%clk 0:00:23]}  Ne4 {[%clk 0:00:05]} 34. Bxe4 {[%clk 0:00:21]}  Rxb1 {[%clk 0:00:05]} 35. Qxa5 {[%clk 0:00:19]}  dxe4 {[%clk 0:00:02]} 36. Rd8+ {[%clk 0:00:19]} 1-0


[Site "https://www.chess.com"]

[Event "Titled Tuesday Blitz August 15 Early 2023"]
[White "Onufrienko, Vladislav"]
[Black "GaiozNigalidze"]
[WhiteFideId "13804332"]
[WhiteElo "2579"]
[BlackElo "2720"]
[Result "0-1"]
[Round "9"]
[TimeControl "180+1"]
[Date "2023.08.15"]
[WhiteClock "0:00:01"]
[BlackClock "0:00:27"]
[Board "45"]

1. e4 {[%clk 0:03:00]}  c5 {[%clk 0:02:54]} 2. Nc3 {[%clk 0:02:59]}  Nc6 {[%clk 0:02:54]} 3. Nf3 {[%clk 0:02:58]}  Nf6 {[%clk 0:02:52]} 4. d4 {[%clk 0:02:54]}  cxd4 {[%clk 0:02:52]} 5. Nxd4 {[%clk 0:02:55]}  e5 {[%clk 0:02:52]} 6. Ndb5 {[%clk 0:02:55]}  d6 {[%clk 0:02:53]} 7. Bg5 {[%clk 0:02:54]}  a6 {[%clk 0:02:53]} 8. Na3 {[%clk 0:02:54]}  b5 {[%clk 0:02:53]} 9. Bxf6 {[%clk 0:02:54]}  gxf6 {[%clk 0:02:53]} 10. Nd5 {[%clk 0:02:54]}  Bg7 {[%clk 0:02:54]} 11. c3 {[%clk 0:02:45]}  f5 {[%clk 0:02:52]} 12. Bd3 {[%clk 0:02:33]}  Be6 {[%clk 0:02:51]} 13. O-O {[%clk 0:02:25]}  f4 {[%clk 0:02:42]} 14. c4 {[%clk 0:02:16]}  b4 {[%clk 0:02:29]} 15. Qa4 {[%clk 0:01:40]}  Bd7 {[%clk 0:02:28]} 16. Nc2 {[%clk 0:01:24]}  a5 {[%clk 0:02:23]} 17. Ne1 {[%clk 0:01:02]}  Nd4 {[%clk 0:02:03]} 18. Qd1 {[%clk 0:01:01]}  h5 {[%clk 0:01:53]} 19. Nc2 {[%clk 0:01:00]}  Ne6 {[%clk 0:01:39]} 20. b3 {[%clk 0:00:46]}  Qg5 {[%clk 0:01:28]} 21. f3 {[%clk 0:00:44]}  h4 {[%clk 0:01:26]} 22. h3 {[%clk 0:00:44]}  O-O {[%clk 0:01:25]} 23. Qe1 {[%clk 0:00:35]}  Nc5 {[%clk 0:01:19]} 24. Rd1 {[%clk 0:00:21]}  Kh8 {[%clk 0:01:18]} 25. Kf2 {[%clk 0:00:17]}  Ra6 {[%clk 0:01:14]} 26. Rg1 {[%clk 0:00:16]}  Rg8 {[%clk 0:01:04]} 27. Ke2 {[%clk 0:00:15]}  Bf6 {[%clk 0:01:04]} 28. Qf2 {[%clk 0:00:14]}  Bd8 {[%clk 0:01:03]} 29. Rb1 {[%clk 0:00:11]}  Be6 {[%clk 0:00:59]} 30. Kd2 {[%clk 0:00:11]}  Ra7 {[%clk 0:00:52]} 31. Ne1 {[%clk 0:00:10]}  a4 {[%clk 0:00:49]} 32. Bc2 {[%clk 0:00:09]}  axb3 {[%clk 0:00:47]} 33. axb3 {[%clk 0:00:10]}  Bxd5 {[%clk 0:00:45]} 34. exd5 {[%clk 0:00:08]}  Bb6 {[%clk 0:00:46]} 35. Qf1 {[%clk 0:00:06]}  Ra2 {[%clk 0:00:44]} 36. Kc1 {[%clk 0:00:05]}  e4 {[%clk 0:00:35]} 37. fxe4 {[%clk 0:00:04]}  f3+ {[%clk 0:00:35]} 38. Kd1 {[%clk 0:00:02]}  f2 {[%clk 0:00:30]} 39. Qxf2 {[%clk 0:00:02]}  Nxe4 {[%clk 0:00:27]} 40. Qe2 {[%clk 0:00:01]}  Nc3# {[%clk 0:00:27]} 0-1


[Site "https://www.chess.com"]

[Event "Titled Tuesday Blitz August 15 Early 2023"]
[White "Aggelis, Nikolaos"]
[Black "Alex_Sahakyan2006"]
[WhiteFideId "4213220"]
[WhiteElo "2577"]
[BlackElo "2719"]
[Result "1/2-1/2"]
[Round "9"]
[TimeControl "180+1"]
[Date "2023.08.15"]
[WhiteClock "0:00:18"]
[BlackClock "0:00:11"]
[Board "46"]

1. c4 {[%clk 0:02:55]}  c5 {[%clk 0:02:59]} 2. Nc3 {[%clk 0:02:54]}  g6 {[%clk 0:02:59]} 3. Nf3 {[%clk 0:02:54]}  Bg7 {[%clk 0:02:59]} 4. d4 {[%clk 0:02:55]}  cxd4 {[%clk 0:02:59]} 5. Nxd4 {[%clk 0:02:55]}  Nc6 {[%clk 0:03:00]} 6. Nxc6 {[%clk 0:02:55]}  dxc6 {[%clk 0:02:59]} 7. Qxd8+ {[%clk 0:02:52]}  Kxd8 {[%clk 0:03:00]} 8. Bd2 {[%clk 0:02:45]}  Be6 {[%clk 0:02:55]} 9. O-O-O {[%clk 0:02:45]}  Ke8 {[%clk 0:02:31]} 10. e4 {[%clk 0:02:32]}  Rd8 {[%clk 0:02:28]} 11. Be2 {[%clk 0:02:29]}  Bd4 {[%clk 0:02:27]} 12. f3 {[%clk 0:02:21]}  Nf6 {[%clk 0:02:27]} 13. Bh6 {[%clk 0:02:18]}  Rd7 {[%clk 0:01:55]} 14. Kc2 {[%clk 0:02:16]}  Kd8 {[%clk 0:01:50]} 15. Rd2 {[%clk 0:02:09]}  Kc8 {[%clk 0:01:40]} 16. Rhd1 {[%clk 0:02:09]}  Rhd8 {[%clk 0:01:40]} 17. b3 {[%clk 0:02:06]}  Be5 {[%clk 0:01:34]} 18. Rxd7 {[%clk 0:02:05]}  Rxd7 {[%clk 0:01:34]} 19. Rxd7 {[%clk 0:02:05]}  Nxd7 {[%clk 0:01:34]} 20. g3 {[%clk 0:02:05]}  a5 {[%clk 0:01:26]} 21. Be3 {[%clk 0:02:03]}  Kc7 {[%clk 0:01:24]} 22. f4 {[%clk 0:02:03]}  Bd6 {[%clk 0:01:25]} 23. e5 {[%clk 0:01:55]}  Bc5 {[%clk 0:01:24]} 24. Bxc5 {[%clk 0:01:46]}  Nxc5 {[%clk 0:01:25]} 25. Bd3 {[%clk 0:01:44]}  h5 {[%clk 0:01:16]} 26. Kd2 {[%clk 0:01:43]}  Kb6 {[%clk 0:01:12]} 27. Bc2 {[%clk 0:01:30]}  Kc7 {[%clk 0:01:00]} 28. Ke3 {[%clk 0:01:30]}  Na6 {[%clk 0:00:59]} 29. Ne4 {[%clk 0:01:24]}  Bf5 {[%clk 0:00:59]} 30. Bd1 {[%clk 0:01:20]}  Bxe4 {[%clk 0:00:57]} 31. Kxe4 {[%clk 0:01:21]}  Nc5+ {[%clk 0:00:55]} 32. Kd4 {[%clk 0:01:21]}  Ne6+ {[%clk 0:00:45]} 33. Ke4 {[%clk 0:01:21]}  Nc5+ {[%clk 0:00:46]} 34. Kd4 {[%clk 0:01:20]}  Kb6 {[%clk 0:00:39]} 35. a3 {[%clk 0:01:20]}  Ne6+ {[%clk 0:00:20]} 36. Ke4 {[%clk 0:01:20]}  Kc5 {[%clk 0:00:20]} 37. Kd3 {[%clk 0:01:17]}  b5 {[%clk 0:00:19]} 38. cxb5 {[%clk 0:01:15]}  cxb5 {[%clk 0:00:20]} 39. Kc3 {[%clk 0:01:16]}  b4+ {[%clk 0:00:20]} 40. axb4+ {[%clk 0:01:16]}  axb4+ {[%clk 0:00:21]} 41. Kd3 {[%clk 0:01:10]}  Nd4 {[%clk 0:00:21]} 42. Ke3 {[%clk 0:01:08]}  Nb5 {[%clk 0:00:17]} 43. Kd3 {[%clk 0:01:05]}  Nc7 {[%clk 0:00:17]} 44. Bf3 {[%clk 0:01:02]}  Ne6 {[%clk 0:00:16]} 45. Ke4 {[%clk 0:00:50]}  Nd4 {[%clk 0:00:15]} 46. Bd1 {[%clk 0:00:50]}  Nf5 {[%clk 0:00:14]} 47. Kd3 {[%clk 0:00:42]}  h4 {[%clk 0:00:13]} 48. g4 {[%clk 0:00:42]}  Nd4 {[%clk 0:00:13]} 49. Ke4 {[%clk 0:00:42]}  g5 {[%clk 0:00:12]} 50. f5 {[%clk 0:00:41]}  f6 {[%clk 0:00:12]} 51. exf6 {[%clk 0:00:37]}  exf6 {[%clk 0:00:12]} 52. h3 {[%clk 0:00:37]}  Nb5 {[%clk 0:00:11]} 53. Be2 {[%clk 0:00:35]}  Nd6+ {[%clk 0:00:11]} 54. Ke3 {[%clk 0:00:33]}  Kd5 {[%clk 0:00:12]} 55. Bf3+ {[%clk 0:00:25]}  Ke5 {[%clk 0:00:13]} 56. Be2 {[%clk 0:00:26]}  Nb7 {[%clk 0:00:13]} 57. Bc4 {[%clk 0:00:26]}  Nc5 {[%clk 0:00:12]} 58. Bf7 {[%clk 0:00:21]}  Ne4 {[%clk 0:00:13]} 59. Bc4 {[%clk 0:00:21]}  Nc3 {[%clk 0:00:12]} 60. Bf7 {[%clk 0:00:19]}  Nd1+ {[%clk 0:00:11]} 61. Ke2 {[%clk 0:00:18]}  Nc3+ {[%clk 0:00:12]} 62. Ke3 {[%clk 0:00:19]}  Ne4 {[%clk 0:00:11]} 63. Bc4 {[%clk 0:00:19]}  Ng3 {[%clk 0:00:11]} 64. Bg8 {[%clk 0:00:18]}  Ne4 {[%clk 0:00:11]} 65. Bc4 {[%clk 0:00:18]} 1/2-1/2


[Site "https://www.chess.com"]

[Event "Titled Tuesday Blitz August 15 Early 2023"]
[White "Akhmetov, Ayan"]
[Black "Gubajdullin, Alexei"]
[WhiteFideId "13703706"]
[BlackFideId "4141202"]
[WhiteElo "2566"]
[BlackElo "2707"]
[Result "1-0"]
[Round "9"]
[TimeControl "180+1"]
[Date "2023.08.15"]
[WhiteClock "0:02:00"]
[BlackClock "0:01:53"]
[Board "48"]

1. Nf3 {[%clk 0:03:00]}  Nf6 {[%clk 0:02:59]} 2. c4 {[%clk 0:03:00]}  g6 {[%clk 0:02:59]} 3. Nc3 {[%clk 0:02:59]}  Bg7 {[%clk 0:02:59]} 4. g3 {[%clk 0:02:59]}  O-O {[%clk 0:02:59]} 5. Bg2 {[%clk 0:02:59]}  d6 {[%clk 0:02:59]} 6. O-O {[%clk 0:02:59]}  Nc6 {[%clk 0:02:59]} 7. d3 {[%clk 0:03:00]}  Nh5 {[%clk 0:02:58]} 8. e4 {[%clk 0:02:53]}  Bg4 {[%clk 0:02:30]} 9. h3 {[%clk 0:02:48]}  Bxf3 {[%clk 0:02:30]} 10. Bxf3 {[%clk 0:02:49]}  Nf6 {[%clk 0:02:29]} 11. Bg2 {[%clk 0:02:24]}  Nd4 {[%clk 0:02:27]} 12. Be3 {[%clk 0:02:19]}  Nd7 {[%clk 0:02:26]} 13. Ne2 {[%clk 0:02:16]}  Nxe2+ {[%clk 0:02:21]} 14. Qxe2 {[%clk 0:02:17]}  c5 {[%clk 0:02:20]} 15. Rab1 {[%clk 0:02:16]}  Ne5 {[%clk 0:02:07]} 16. b4 {[%clk 0:02:13]}  cxb4 {[%clk 0:01:53]} 17. Rxb4 {[%clk 0:02:00]}  b6 {[%clk 0:01:53]} 1-0


[Site "https://www.chess.com"]